bitfinex/quotes_SOLUSD_20260309
["timestamp","ask_amount","ask_price","bid_price","bid_amount"]
[1773079807771,0.06861431,84.608,84.577,0.72449879]
[1773079808486,0.06957409,84.622,84.577,0.72449879]
[1773079808658,0.06957409,84.619,84.577,0.72449879]
[1773079809779,11.88603937,84.629,84.579,0.72449879]
[1773079810354,0.0697589,84.628,84.579,0.72449879]
[1773079812779,0.0697589,84.628,84.581,0.72449879]
[1773079813095,33.8315184,84.64,84.581,0.72449879]
[1773079813096,0.07029797,84.634,84.582,0.72449879]
[1773079813784,11.81572199,84.633,84.582,0.72449879]
[1773079814276,0.07029797,84.634,84.584,0.72449879]
[1773079814866,0.07065873,84.619,84.584,0.72449879]
[1773079816465,0.07065873,84.619,84.586,0.72449879]
[1773079818283,0.07117631,84.628,84.586,0.72449879]
[1773079819079,0.07117631,84.628,84.563,0.28432314]
[1773079819080,0.07117631,84.628,84.588,0.72449879]
[1773079819267,0.0713386,84.643,84.588,0.72449879]
[1773079819690,0.0713386,84.643,84.589,0.72449879]
[1773079820489,0.0713386,84.643,84.592,0.72449879]
[1773079820490,11.88566465,84.643,84.592,0.72449879]
[1773079820794,0.07167161,84.65,84.592,0.72449879]
[1773079821090,11.88509385,84.65,84.592,0.72449879]
[1773079821268,0.07167161,84.65,84.592,0.72449879]
[1773079821462,11.81432605,84.643,84.592,0.72449879]
[1773079821667,0.0718352,84.639,84.592,0.72449879]
[1773079822181,4.29432159,84.65,84.592,0.72449879]
[1773079822182,0.0718352,84.649,84.592,0.72449879]
[1773079822366,0.0718352,84.649,84.594,1.00882193]
[1773079822570,11.81365016,84.648,84.595,0.72449879]
[1773079822975,0.07198972,84.656,84.598,0.72449879]
[1773079823365,0.07198972,84.656,84.599,0.72449879]
[1773079823566,0.07214996,84.658,84.599,0.72449879]
[1773079824164,0.07214996,84.649,84.599,0.72449879]
[1773079824592,0.07230854,84.648,84.601,0.72449879]
[1773079825467,4.39432159,84.66,84.602,0.72449879]
[1773079825468,11.81284197,84.654,84.602,0.72449879]
[1773079825689,11.88483758,84.657,84.602,0.72449879]
[1773079826081,0.07246531,84.656,84.602,0.72449879]
[1773079826281,0.07246531,84.659,84.602,0.72449879]
[1773079826484,11.88455853,84.659,84.602,0.72449879]
[1773079826879,0.07246531,84.659,84.605,0.72449879]
[1773079828184,0.1,84.66,84.605,0.72449879]
[1773079828375,0.1,84.66,84.608,0.72449879]
[1773079828775,0.1,84.66,84.61,0.28432314]
[1773079828976,0.1,84.66,84.611,0.72449879]
[1773079829177,0.1,84.66,84.613,0.72449879]
[1773079830477,0.07322533,84.659,84.613,0.72449879]
[1773079830993,0.07322533,84.659,84.615,0.72449879]
[1773079831382,0.1,84.66,84.615,0.72449879]
[1773079831582,0.07337162,84.659,84.615,0.72449879]
[1773079832189,0.1,84.66,84.615,0.72449879]
[1773079832875,0.1,84.66,84.617,0.72449879]
[1773079833074,0.07351459,84.659,84.617,0.72449879]
[1773079834395,0.07351459,84.659,84.619,0.72449879]
[1773079836291,0.1,84.66,84.622,0.72449879]
[1773079837379,0.07419627,84.659,84.622,0.72449879]
[1773079837592,0.07433263,84.649,84.622,0.72449879]
[1773079837898,0.07433263,84.649,84.586,63.58222873]
[1773079837899,0.07433263,84.639,84.597,0.72449879]
[1773079838392,0.07433263,84.639,84.575,62.4]
[1773079838393,0.07433263,84.649,84.599,0.72449879]
[1773079839579,0.07459243,84.648,84.601,0.72449879]
[1773079843301,0.07459243,84.648,84.603,0.72449879]
[1773079845804,0.07459243,84.648,84.605,0.72449879]
[1773079846819,0.07459243,84.648,84.607,0.72449879]
[1773079847800,0.07568925,84.658,84.607,0.72449879]
[1773079848599,0.1,84.66,84.609,3.69383402]
[1773079848801,0.1,84.66,84.613,0.72449879]
[1773079849106,0.1,84.66,84.617,0.72449879]
[1773079850306,11.80944283,84.678,84.617,0.72245637]
[1773079850603,0.17591212,84.677,84.617,0.72245637]
[1773079850802,0.17591212,84.677,84.622,0.72245637]
[1773079851005,0.17591212,84.677,84.623,0.72245637]
[1773079851685,0.17628718,84.683,84.623,0.72245637]
[1773079852085,0.17628718,84.682,84.623,0.72245637]
[1773079853502,0.1766617,84.679,84.628,0.72245637]
[1773079855812,0.17700895,84.677,84.63,0.72245637]
[1773079856191,11.80944283,84.678,84.63,0.72245637]
[1773079856398,0.17700895,84.686,84.631,0.72245637]
[1773079856799,0.17719435,84.679,84.631,0.72245637]
[1773079859419,0.17754799,84.686,84.633,0.72245637]
[1773079859910,7.30046802,84.689,84.634,0.72245637]
[1773079860297,7.47818226,84.689,84.634,0.72245637]
[1773079860497,0.17787476,84.688,84.634,0.72245637]
[1773079860700,7.30046802,84.689,84.637,0.72245637]
[1773079860911,7.30046802,84.689,84.64,0.72245637]
[1773079861095,7.30046802,84.689,84.643,0.72245637]
[1773079861295,0.1,84.7,84.653,0.72245637]
[1773079861512,0.1,84.7,84.659,0.72245637]
[1773079863724,0.1,84.7,84.662,0.71835053]
[1773079865447,0.17866191,84.699,84.662,0.71835053]
[1773079865608,0.17866191,84.699,84.664,0.71835053]
[1773079865809,0.17881397,84.697,84.664,0.71835053]
[1773079867032,0.1,84.7,84.664,0.71835053]
[1773079867207,0.1,84.7,84.665,0.71835053]
[1773079867531,11.90363392,84.72,84.668,0.71835053]
[1773079867736,0.1,84.72,84.671,0.71835053]
[1773079870145,0.1,84.72,84.673,0.71835053]
[1773079870820,0.17954109,84.719,84.673,0.71835053]
[1773079871740,0.1,84.72,84.673,0.71835053]
[1773079872341,0.1,84.72,84.675,0.71835053]
[1773079873130,0.1,84.72,84.676,0.71835053]
[1773079873323,0.1,84.72,84.683,0.71835053]
[1773079874023,0.17753773,84.74,84.681,0.71835053]
[1773079874247,0.17753773,84.74,84.685,0.8605121]
[1773079874442,0.1,84.75,84.692,0.71835053]
[1773079874624,11.79960903,84.749,84.692,0.71835053]
[1773079874819,0.59020073,84.738,84.696,0.71835053]
[1773079875027,0.1,84.75,84.696,0.71835053]
[1773079875028,0.1,84.75,84.702,0.71835053]
[1773079875326,0.1,84.75,84.693,3.69383402]
[1773079875327,0.27565598,84.769,84.717,0.71835053]
[1773079875642,0.2747706,84.759,84.717,0.71835053]
[1773079875942,0.2747706,84.739,84.698,0.71835053]
[1773079876444,0.2747706,84.739,84.701,0.71835053]
[1773079876641,0.27390152,84.755,84.701,0.71835053]
[1773079877150,0.27390152,84.749,84.701,0.71835053]
[1773079877646,4.28913082,84.74,84.701,0.71835053]
[1773079877945,0.27303771,84.739,84.701,0.71835053]
[1773079878933,0.27219184,84.737,84.703,0.71835053]
[1773079879125,0.27219184,84.737,84.702,11.80609666]
[1773079879529,0.27219184,84.737,84.702,12.52444719]
[1773079879735,0.27219184,84.737,84.703,0.71835053]
[1773079880146,0.27134828,84.742,84.703,0.71835053]
[1773079881443,0.27134828,84.742,84.705,0.71835053]
[1773079882644,58.98292161,84.771,84.705,0.71835053]
[1773079882645,0.26886071,84.76,84.706,0.71835053]
[1773079883039,0.26886071,84.759,84.706,0.71835053]
[1773079883933,0.26805,84.757,84.709,0.71835053]
[1773079884942,0.26725573,84.749,84.709,0.71835053]
[1773079886149,0.2664629,84.757,84.712,0.71835053]
[1773079886353,12.06411093,84.763,84.712,0.71835053]
[1773079886854,4.28913082,84.76,84.712,0.71835053]
[1773079887353,0.26567907,84.762,84.712,0.71835053]
[1773079888049,11.79787874,84.761,84.714,0.71835053]
[1773079888238,0.26490456,84.76,84.714,0.71835053]
[1773079891057,0.26490456,84.76,84.715,41.31499733]
[1773079891258,0.26263692,84.758,84.716,0.71835053]
[1773079893053,0.26115891,84.756,84.718,0.71835053]
[1773079894953,4.28913082,84.75,84.71,0.68006682]
[1773079895148,0.25900608,84.748,84.71,0.68006682]
[1773079896263,0.25830696,84.739,84.7,0.68006682]
[1773079896765,0.25830696,84.739,84.701,0.68006682]
[1773079896976,0.25762709,84.75,84.701,0.82222839]
[1773079897268,11.79874924,84.755,84.702,0.68006682]
[1773079897470,0.25762709,84.758,84.703,0.68006682]
[1773079897649,11.79843552,84.757,84.703,0.68006682]
[1773079898049,0.25762709,84.758,84.703,0.68006682]
[1773079898245,0.25694399,84.769,84.712,0.68006682]
[1773079898551,0.1,84.77,84.724,0.68006682]
[1773079899972,11.79676532,84.769,84.724,0.68006682]
[1773079900553,0.1,84.77,84.726,0.28432314]
[1773079900769,0.1,84.77,84.727,0.68006682]
[1773079902661,0.1,84.77,84.729,0.96438996]
[1773079902868,0.1,84.77,84.73,0.68006682]
[1773079903561,0.25365692,84.769,84.73,0.68006682]
[1773079904977,0.25365692,84.769,84.706,62.4]
[1773079904978,41.28916572,84.768,84.721,0.68924696]
[1773079905162,0.25176757,84.759,84.721,0.68924696]
[1773079905753,0.25115317,84.749,84.699,0.68924696]
[1773079906887,4.27599952,84.74,84.699,0.68924696]
[1773079907094,4.27599952,84.74,84.7,41.32231404]
[1773079907095,0.25054345,84.737,84.7,41.32231404]
[1773079907472,0.25054345,84.737,84.701,0.68924696]
[1773079907874,0.24993894,84.729,84.7,11.80637544]
[1773079908081,0.24993894,84.719,84.7,11.80637544]
[1773079908474,0.24934354,84.729,84.7,11.80637544]
[1773079909280,0.24934354,84.727,84.695,11.80707243]
[1773079909474,0.24934354,84.727,84.695,12.49631939]
[1773079910072,0.24875639,84.734,84.696,0.68924696]
[1773079910274,11.80222041,84.73,84.696,0.68924696]
[1773079910478,0.24875639,84.729,84.696,0.68924696]
[1773079912405,0.24760118,84.736,84.698,0.68924696]
[1773079912781,11.80094171,84.739,84.698,0.68924696]
[1773079913489,0.24703509,84.738,84.698,0.68924696]
[1773079914689,12.04713658,84.737,84.7,0.68924696]
[1773079914895,11.04713658,84.737,84.7,0.68924696]
[1773079915774,0.24591634,84.737,84.702,0.68924696]
[1773079917094,0.24482325,84.748,84.702,0.68924696]
[1773079918373,0.2442793,84.746,84.704,0.68924696]
[1773079921709,0.24220637,84.744,84.706,0.68924696]
[1773079922203,11.79958473,84.749,84.706,0.68924696]
[1773079922503,0.24220637,84.748,84.706,0.68924696]
[1773079923495,4.82477569,84.814,84.693,0.28432314]
[1773079923496,0.24069985,84.761,84.709,0.71008698]
[1773079923893,0.24069985,84.761,84.713,0.71008698]
[1773079924096,0.24069985,84.759,84.713,0.71008698]
[1773079925397,0.23973967,84.747,84.714,11.80442429]
[1773079925598,0.23973967,84.747,84.707,0.71008698]
[1773079925803,0.23973967,84.739,84.707,0.71008698]
[1773079926706,0.23973967,84.739,84.689,0.71008698]
[1773079927405,0.23926386,84.719,84.689,0.71008698]
[1773079927699,11.80386694,84.718,84.691,0.71008698]
[1773079928077,0.23880149,84.717,84.69,11.80776951]
[1773079929600,0.23787284,84.715,84.687,0.71008698]
[1773079931703,0.23660624,84.713,84.687,0.71008698]
[1773079932305,0.23660624,84.709,84.68,11.80910356]
[1773079932902,0.23660624,84.709,84.681,0.71008698]
[1773079934303,0.23660624,84.709,84.683,0.71008698]
[1773079935293,0.23423782,84.707,84.683,0.71008698]
[1773079936906,0.23423782,84.707,84.684,11.80860611]
[1773079937488,11.80553915,84.706,84.684,11.80860611]
[1773079937684,0.23195694,84.705,84.68,11.80908915]
[1773079938190,0.23195694,84.705,84.677,11.80958229]
[1773079938395,0.23195694,84.705,84.678,0.71008698]
[1773079939914,0.23046525,84.703,84.679,11.80930336]
[1773079940419,0.23046525,84.699,84.671,27.76636042]
[1773079940726,4.27599952,84.68,84.635,0.73961033]
[1773079941920,4.27599952,84.68,84.613,3.69383402]
[1773079941921,11.80930336,84.679,84.637,0.73961033]
[1773079942621,4.27599952,84.69,84.637,0.73961033]
[1773079942911,11.80810596,84.688,84.637,0.73961033]
[1773079944093,11.80810596,84.688,84.639,0.73961033]
[1773079944297,4.27599952,84.68,84.639,0.73961033]
[1773079945899,11.80930336,84.679,84.641,0.73961033]
[1773079946315,11.80795306,84.689,84.641,0.73961033]
[1773079946697,41.3277254,84.689,84.641,0.73961033]
[1773079946907,4.27599952,84.68,84.641,0.73961033]
[1773079947807,11.80930336,84.679,84.643,0.73961033]
[1773079948819,4.27599952,84.67,84.643,0.73961033]
[1773079949311,11.80930336,84.679,84.643,0.73961033]
[1773079949507,4.27599952,84.68,84.643,0.73961033]
[1773079949823,11.80883091,84.683,84.643,0.73961033]
[1773079950609,11.80825762,84.687,84.645,0.73961033]
[1773079951822,11.80825762,84.687,84.647,0.73961033]
[1773079952324,63.29414149,84.72,84.647,0.73961033]
[1773079952325,11.84,84.776,84.647,0.71008698]
[1773079952526,0.72897706,84.747,84.692,3.69383402]
[1773079952718,0.1,84.77,84.705,4.82477569]
[1773079952926,11.79676532,84.769,84.707,0.71008698]
[1773079953105,4.27599952,84.76,84.707,0.71008698]
[1773079953309,11.79676532,84.769,84.707,0.71008698]
[1773079953511,0.1,84.77,84.707,0.71008698]
[1773079953820,0.1,84.77,84.716,0.72747051]
[1773079954650,0.71643231,84.769,84.716,0.72747051]
[1773079954925,0.71643231,84.769,84.714,4.82477569]
[1773079954926,0.71643231,84.729,84.685,0.72747051]
[1773079955722,0.71643231,84.729,84.693,0.72747051]
[1773079955914,0.71643231,84.728,84.695,0.72747051]
[1773079957421,0.71643231,84.739,84.695,0.72747051]
[1773079957623,0.71643231,84.749,84.696,0.72747051]
[1773079958130,0.71643231,84.749,84.699,0.72747051]
[1773079958526,7.35820864,84.768,84.705,0.72747051]
[1773079958527,0.71643231,84.767,84.705,0.72747051]
[1773079958824,0.71643231,84.759,84.705,0.72747051]
[1773079959029,0.71643231,84.767,84.705,0.72747051]
[1773079960131,0.71643231,84.766,84.71,0.72747051]
[1773079960317,0.71643231,84.766,84.711,0.72747051]
[1773079961237,0.71643231,84.759,84.711,0.72747051]
[1773079961430,0.71643231,84.749,84.711,0.72747051]
[1773079964237,7.35820864,84.768,84.712,152.38356309]
[1773079964451,0.71643231,84.767,84.715,0.72747051]
[1773079965337,7.35820864,84.768,84.713,0.28432314]
[1773079965338,0.71819248,84.765,84.717,0.6839487]
[1773079967747,0.71819248,84.763,84.719,0.6839487]
[1773079969960,0.71819248,84.763,84.698,0.28432314]
[1773079969961,0.71819248,84.749,84.712,0.6839487]
[1773079972144,0.71819248,84.749,84.714,0.6839487]
[1773079972330,0.71819248,84.762,84.715,0.6839487]
[1773079972948,7.35820864,84.768,84.715,0.6839487]
[1773079973340,7.35820864,84.768,84.72,3.69383402]
[1773079973654,7.35820864,84.768,84.727,0.6839487]
[1773079974439,7.35820864,84.768,84.73,0.6839487]
[1773079975530,11.46309586,84.8,84.729,0.28432314]
[1773079975531,0.71819248,84.788,84.731,0.6839487]
[1773079975836,0.71819248,84.788,84.737,0.6839487]
[1773079976738,0.71819248,84.788,84.743,0.6839487]
[1773079977936,0.71819248,84.788,84.745,0.6839487]
[1773079980259,0.71819248,84.788,84.747,0.6839487]
[1773079982550,0.71819248,84.788,84.749,0.6839487]
[1773079983048,0.71819248,84.802,84.75,0.6839487]
[1773079984351,11.79207981,84.803,84.75,0.6839487]
[1773079984352,0.73833373,84.799,84.75,0.6839487]
[1773079984751,0.73833373,84.797,84.752,0.73345663]
[1773079986471,0.73833373,84.797,84.753,0.73345663]
[1773079986863,0.73833373,84.797,84.754,41.29598602]
[1773079987062,0.73833373,84.797,84.755,0.73345663]
[1773079988173,0.73833373,84.795,84.755,0.73345663]
[1773079990349,0.73833373,84.793,84.757,0.73345663]
[1773079990549,0.73833373,84.793,84.756,41.29501156]
[1773079990550,0.73833373,84.793,84.756,11.79857473]
[1773079991147,0.73833373,84.779,84.736,42.03821493]
[1773079992066,0.73833373,84.769,84.736,11.80135951]
[1773079992472,0.73833373,84.767,84.729,11.8023345]
[1773079993354,0.73833373,84.767,84.705,12.80559334]
[1773079993355,0.73833373,84.759,84.721,0.73345663]
[1773079994453,0.73833373,84.749,84.715,0.73345663]
[1773079997650,0.73833373,84.749,84.717,0.73345663]
[1773079999661,0.73833373,84.749,84.719,0.73345663]
[1773080001152,0.73833373,84.749,84.718,41.3135343]
[1773080001153,4.27862245,84.77,84.72,0.73345663]
[1773080001356,11.7969462,84.768,84.72,0.73345663]
[1773080001856,4.27862245,84.76,84.722,0.73345663]
[1773080003274,0.64826887,84.759,84.722,0.73345663]
[1773080005981,0.65231372,84.757,84.724,0.73345663]
[1773080008155,0.65231372,84.757,84.726,0.73345663]
[1773080010063,0.65749516,84.755,84.726,0.73345663]
[1773080011066,0.65749516,84.755,84.705,12.80559334]
[1773080011067,0.65875642,84.749,84.714,11.80442429]
[1773080011580,41.29598602,84.754,84.714,11.80442429]
[1773080011581,0.6600086,84.739,84.714,11.80442429]
[1773080014793,0.6600086,84.739,84.713,30.26295832]
[1773080015001,0.28432314,84.764,84.713,30.26295832]
[1773080015002,11.79495647,84.782,84.715,0.75160345]
[1773080015279,11.79495647,84.782,84.713,29.51135487]
[1773080015280,0.66484339,84.789,84.727,4.82477569]
[1773080015473,0.66484339,84.789,84.736,0.75160345]
[1773080016688,11.7941218,84.788,84.737,41.30427085]
[1773080016896,0.66716334,84.787,84.738,0.75160345]
[1773080018984,0.66944643,84.785,84.74,0.75160345]
[1773080020881,11.79467824,84.784,84.741,11.80066319]
[1773080021087,0.67167855,84.783,84.742,0.75160345]
[1773080023791,0.67494537,84.781,84.744,0.75160345]
[1773080025380,0.67703703,84.788,84.745,0.76920412]
[1773080025688,0.67703703,84.788,84.744,0.28432314]
[1773080025689,11.79414816,84.788,84.747,0.76920412]
[1773080025896,0.67807317,84.787,84.747,0.76920412]
[1773080034104,0.68593321,84.785,84.749,0.76920412]
[1773080036595,0.68593321,84.785,84.751,0.76920412]
[1773080036810,0.68869455,84.783,84.751,0.76920412]
[1773080041305,4.27596246,84.79,84.725,47.49540287]
[1773080041306,0.69224382,84.781,84.753,0.76920412]
[1773080041501,0.69224382,84.781,84.752,11.79913158]
[1773080041708,0.6931062,84.779,84.73,0.76920412]
[1773080043412,0.69481281,84.777,84.732,0.71465624]
[1773080046114,0.69728999,84.775,84.733,41.3062207]
[1773080046408,0.69728999,84.775,84.734,0.71465624]
[1773080047610,0.6988755,84.769,84.734,0.71465624]
[1773080048310,11.79690449,84.768,84.736,0.71465624]
[1773080048501,0.69965693,84.787,84.736,0.71465624]
[1773080050416,0.70042937,84.785,84.738,0.71465624]
[1773080051917,0.69959918,84.779,84.738,0.71465624]
[1773080052523,0.69803066,84.777,84.74,0.71465624]
[1773080054509,0.6964796,84.769,84.739,11.80094171]
[1773080054714,0.69495014,84.767,84.736,0.71465624]
[1773080056518,0.6934351,84.773,84.736,0.71465624]
[1773080057233,0.69193572,84.772,84.738,0.71465624]
[1773080060011,4.27596246,84.78,84.74,0.71465624]
[1773080060012,0.68753638,84.77,84.74,0.71465624]
[1773080063139,0.68753638,84.77,84.742,0.71465624]
[1773080064942,0.68753638,84.77,84.744,0.71465624]
[1773080065530,11.79676532,84.769,84.744,0.71465624]
[1773080065838,0.67920258,84.768,84.744,0.71465624]
[1773080066850,0.67920258,84.768,84.739,0.71465624]
[1773080067026,0.28432314,84.794,84.741,0.71465624]
[1773080067027,0.6778681,84.766,84.741,0.71465624]
[1773080067927,0.6778681,84.766,84.736,0.71465624]
[1773080071146,0.67265867,84.764,84.738,0.71465624]
[1773080074753,0.67265867,84.764,84.74,0.78000061]
[1773080075141,0.66649763,84.786,84.74,0.78000061]
[1773080075949,0.66530767,84.779,84.74,0.78000061]
[1773080077156,0.66413299,84.777,84.742,0.78000061]
[1773080077735,0.66413299,84.777,84.741,11.80066319]
[1773080077736,0.66413299,84.777,84.75,0.5]
[1773080077937,0.66413299,84.777,84.751,0.78000061]
[1773080078338,0.66413299,84.777,84.75,0.5]
[1773080079043,0.66413299,84.777,84.75,1.28000061]
[1773080079245,0.66181713,84.775,84.751,12.57927141]
[1773080080948,11.79606954,84.774,84.751,12.57927141]
[1773080081150,0.65954434,84.773,84.751,0.78000061]
[1773080081360,0.65954434,84.773,84.751,12.57925595]
[1773080083140,0.65954434,84.773,84.751,0.78000061]
[1773080083448,0.65734074,84.771,84.751,0.78000061]
[1773080084356,0.65517846,84.776,84.752,0.74330892]
[1773080084660,4.27596246,84.79,84.752,0.74330892]
[1773080084661,0.65517846,84.781,84.752,0.74330892]
[1773080085450,0.65517846,84.781,84.754,0.74330892]
[1773080086958,0.65203957,84.779,84.755,11.79871394]
[1773080089963,11.79551298,84.778,84.755,11.79871394]
[1773080090166,0.64898847,84.777,84.755,11.79871394]
[1773080090383,0.64898847,84.777,84.756,0.74330892]
[1773080094368,0.64898847,84.777,84.757,11.79843552]
[1773080094666,0.64415297,84.775,84.757,11.79843552]
[1773080097855,0.64136528,84.773,84.756,0.74330892]
[1773080098461,0.64136528,84.773,84.757,11.79843552]
[1773080100269,11.79448956,84.786,84.758,0.74330892]
[1773080100576,0.63956695,84.785,84.758,0.74330892]
[1773080101857,0.63781928,84.783,84.758,0.74330892]
[1773080102878,0.63781928,84.783,84.759,11.79815712]
[1773080103174,0.63781928,84.783,84.759,12.54146604]
[1773080103874,11.79495647,84.782,84.759,0.74330892]
[1773080104080,0.63527159,84.781,84.759,0.74330892]
[1773080104861,0.63527159,84.781,84.757,11.79841441]
[1773080104862,0.63442846,84.779,84.753,0.73139278]
[1773080105882,11.79551298,84.778,84.754,0.73139278]
[1773080106066,0.63360125,84.777,84.754,0.73139278]
[1773080106784,0.63360125,84.777,84.756,0.73139278]
[1773080107875,41.28526941,84.776,84.747,0.73139278]
[1773080108077,4.27608685,84.76,84.738,0.73139278]
[1773080108274,0.63197846,84.759,84.738,0.73139278]
[1773080109887,0.63040977,84.769,84.738,0.73139278]
[1773080112490,11.79690449,84.768,84.74,0.73139278]
[1773080112984,12.4235183,84.768,84.74,0.73139278]
[1773080113381,0.62661381,84.767,84.74,0.73139278]
[1773080113692,11.79690449,84.768,84.742,0.73139278]
[1773080113889,12.42203844,84.768,84.742,0.73139278]
[1773080114195,12.42203844,84.768,84.732,12.53320603]
[1773080114196,0.62513395,84.759,84.732,12.53320603]
[1773080114402,0.62513395,84.759,84.705,12.5212702]
[1773080114403,0.62513395,84.749,84.707,0.73139278]
[1773080114575,11.79690449,84.768,84.707,0.73139278]
[1773080114576,0.62513395,84.739,84.707,0.73139278]
[1773080114783,0.62367449,84.749,84.707,0.73139278]
[1773080115891,11.79968848,84.748,84.709,0.73139278]
[1773080116485,0.62079968,84.768,84.709,0.73139278]
[1773080116688,0.62079968,84.775,84.715,0.73139278]
[1773080117796,0.61938038,84.773,84.722,0.28432314]
[1773080117994,0.61938038,84.773,84.723,0.73139278]
[1773080118177,11.79435454,84.787,84.725,0.73139278]
[1773080118375,0.61938038,84.779,84.725,0.73139278]
[1773080118794,0.61797783,84.769,84.725,0.73139278]
[1773080120725,41.28000682,84.787,84.727,0.73139278]
[1773080120726,0.61523482,84.759,84.727,0.73139278]
[1773080122897,0.61523482,84.759,84.729,0.73139278]
[1773080123079,0.61255583,84.757,84.729,0.73139278]
[1773080125086,0.60993706,84.769,84.731,0.73139278]
[1773080125286,0.60993706,84.768,84.731,0.73139278]
[1773080125587,0.60864995,84.79,84.732,0.73139278]
[1773080125788,0.60864995,84.779,84.732,0.73139278]
[1773080126209,0.60864995,84.789,84.732,0.73139278]
[1773080127319,0.60737704,84.787,84.735,0.73139278]
[1773080128525,0.60487262,84.769,84.735,0.73139278]
[1773080129393,0.60487262,84.769,84.72,0.5]
[1773080129394,5.26134604,84.819,84.737,64.22909883]
[1773080129704,0.1,84.87,84.736,362.81344407]
[1773080129705,0.74465928,84.858,84.761,4.82477569]
[1773080130005,0.74465928,84.858,84.766,0.28432314]
[1773080130202,0.74465928,84.858,84.772,0.28432314]
[1773080130401,0.1,84.87,84.78,8.51860971]
[1773080130591,0.74465928,84.869,84.788,8.51860971]
[1773080130905,0.74465928,84.869,84.785,0.28432314]
[1773080130906,0.74465928,84.859,84.796,3.69383402]
[1773080131108,0.74465928,84.849,84.791,0.28432314]
[1773080131504,0.74465928,84.849,84.793,5.10909883]
[1773080132213,29.45716339,84.869,84.793,5.10909883]
[1773080132214,0.74465928,84.869,84.797,0.28432314]
[1773080132412,11.78286535,84.869,84.797,0.28432314]
[1773080132611,0.74465928,84.868,84.797,0.28432314]
[1773080133400,0.74465928,84.847,84.798,41.27455836]
[1773080133698,11.78578163,84.848,84.798,41.27455836]
[1773080133699,0.74465928,84.839,84.798,41.27455836]
[1773080135733,0.74465928,84.839,84.798,29.4818274]
[1773080137503,0.74465928,84.837,84.798,29.4818274]
[1773080140916,0.28432314,84.859,84.798,29.4818274]
[1773080140917,0.74465928,84.835,84.798,29.4818274]
[1773080142129,0.74465928,84.869,84.799,0.28432314]
[1773080142308,4.37608685,84.87,84.818,3.69383402]
[1773080142309,0.1,84.87,84.818,3.69383402]
[1773080142506,0.1,84.87,84.828,0.67580816]
[1773080142712,0.1,84.87,84.828,0.9601313]
[1773080142910,0.1,84.87,84.829,0.67580816]
[1773080144523,0.1,84.87,84.83,41.25898855]
[1773080144732,0.1,84.87,84.832,0.67580816]
[1773080146621,0.1,84.87,84.834,0.28432314]
[1773080146825,0.71451109,84.869,84.834,0.67580816]
[1773080147541,0.71451109,84.869,84.835,0.73728109]
[1773080148144,0.71451109,84.869,84.841,41.99092024]
[1773080148434,0.71451109,84.869,84.842,0.73728109]
[1773080151536,0.71451109,84.869,84.83,41.25898855]
[1773080152024,0.71451109,84.869,84.831,0.73728109]
[1773080152426,0.74916053,84.868,84.831,0.73728109]
[1773080153238,0.74916053,84.868,84.83,12.28828244]
[1773080153446,0.74916053,84.866,84.83,12.28828244]
[1773080153640,11.78314303,84.867,84.83,0.5]
[1773080153641,0.74916053,84.859,84.83,0.5]
[1773080154144,0.74916053,84.859,84.831,11.78814348]
[1773080155249,0.1,84.87,84.832,0.73728109]
[1773080155555,0.1,84.87,84.835,0.73728109]
[1773080155847,0.84916053,84.87,84.835,0.73728109]
[1773080157643,0.84916053,84.87,84.837,1.02160423]
[1773080157842,0.84916053,84.87,84.838,0.73728109]
[1773080158231,0.1,84.87,84.838,0.73728109]
[1773080160350,0.84916053,84.87,84.84,0.73728109]
[1773080160649,0.84916053,84.87,84.839,41.25461166]
[1773080160650,0.84916053,84.87,84.839,11.7870319]
[1773080160855,0.84916053,84.87,84.83,0.5]
[1773080160856,0.74916053,84.859,84.83,0.5]
[1773080161025,0.74916053,84.859,84.81,0.73728109]
[1773080161026,0.74916053,84.849,84.811,11.79092334]
[1773080161648,0.74916053,84.839,84.811,11.79092334]
[1773080162446,0.74916053,84.837,84.801,42.01005534]
[1773080162838,0.74916053,84.837,84.802,0.73728109]
[1773080164052,0.74916053,84.837,84.801,11.79231376]
[1773080164229,0.74339907,84.829,84.801,11.79231376]
[1773080164427,0.74339907,84.829,84.791,29.48415081]
[1773080164428,0.74339907,84.827,84.791,29.48415081]
[1773080164946,11.78856038,84.828,84.788,11.7941218]
[1773080164947,0.74339907,84.819,84.788,11.7941218]
[1773080165148,0.74339907,84.809,84.772,0.72423945]
[1773080165348,0.74339907,84.809,84.787,11.79426091]
[1773080166128,0.74339907,84.809,84.787,41.27991319]
[1773080166530,0.74339907,84.809,84.787,11.79426091]
[1773080166738,0.74339907,84.807,84.787,11.79426091]
[1773080168249,0.74339907,84.823,84.788,0.72423945]
[1773080169880,0.74339907,84.821,84.789,12.51822216]
[1773080171364,0.74339907,84.819,84.789,12.51822216]
[1773080171851,0.74339907,84.817,84.789,12.51822216]
[1773080176067,0.74339907,84.817,84.79,0.72423945]
[1773080177267,0.74339907,84.817,84.791,11.79370452]
[1773080178950,0.74339907,84.817,84.791,12.51794397]
[1773080180675,0.74339907,84.815,84.791,11.79370452]